Cogmind - Beta 15 @@@ ROGUE MODE // 2025.09.02 @ 23:27:29 Player: the Result: Destroyed by X-67 Chaingunner with Heavy Machine Gun Performance ------------- Evolutions (3) 1500 Regions Visited (12) 2400 Robots Destroyed (175) 875 Value Destroyed (4738) 4738 Prototype IDs (34) 680 Alien Tech Used (0) 0 Bonus (624) 624 TOTAL SCORE: 10817 Bonus ------- High Alert Combat Kills 100 Follower Combat Kills 212 Met Imprinter 300 Was Imprinted 300 Friendly Fire -288 Cogmind --------- Core Integrity 0/700 Matter 171/300 Energy 128/490 System Corruption 0% Temperature Cool (0) Movement Rolling (140) Ox4 Location -6/Proximity Caves Parts ------- > --- POWER (1) -------- Improved Deuterium Engine > --- PROPULSION (4) --- Light Armored Exoskeleton Wheel Wheel (fused) > --- UTILITY (5) ------ High-capacity Storage Unit Compact Battery Experimental Optical Array Seismic Detector Improved Medium Armor Plating > --- WEAPON (3) ------- Neutron Cannon Neutron Cannon Rocket Array > --- INVENTORY (20) --- Deuterium Engine Coolant Injector Launcher Guidance Computer Improved Medium Armor Plating Improved Medium Armor Plating Authchip [Propulsion] Authchip [Propulsion] Authchip [Propulsion] Improved Trap Extractor (4/6 Shock) Plasma Cannon Plasma Cannon Tesla Bomb Launcher Tesla Bomb Launcher Rocket Array Improved Datajack RU-N14's Throwing Claymores (4) RU-N14's Throwing Claymores (3) Kinetic Spear PL-3XN's Ring of Power Peak State ------------ > --- POWER ------------ Deuterium Engine > --- PROPULSION ------- Improved Heavy Treads Armored Huge Wheel > --- UTILITY ---------- Improved Cooling System High-capacity Storage Unit Experimental Optical Array Core Analyzer Hacking Suite > --- WEAPON ----------- Precision Beam Rifle Precision Beam Rifle Neutron Cannon > --- INVENTORY -------- Light Deuterium Engine Light Armored Exoskeleton Cooling System Seismic Detector Transport Network Coupler Precision Matter Filter Improved Light Armor Plating Improved Medium Armor Plating Authchip [Propulsion] Authchip [Propulsion] Improved Trap Extractor Plasma Cannon Neutron Cannon Tesla Bomb Launcher Rocket Array Rocket Array Improved Datajack [Rating: 67] Favorites ----------- Power Reinforced Ion Engine Engine Reinforced Ion Engine Power Core Light Nuclear Core Propulsion Armored Wheel Treads Improved Heavy Treads Leg Light Armored Exoskeleton Wheel Armored Wheel Utility High-capacity Storage Unit Device Seismic Detector Storage High-capacity Storage Unit Processor Core Analyzer Hackware Hacking Suite Protection Improved Medium Armor Plating Weapon Precision Beam Rifle Energy Gun Precision Beam Rifle Energy Cannon Neutron Cannon Ballistic Cannon Advanced Assault Cannon Launcher Heavy Rocket Launcher Special Weapon RU-N14's Throwing Claymores Piercing Weapon Kinetic Spear Special Melee Weapon Datajack Build | -11 -10 -10 -10 -9 -8 -7 -7 -7 -7 -7 -7 -6 ------- Run | Yrd Mat Min Exi Min Mat Fac Was Fac Low Low Zio Pro Slots Evolved 6 | . . . . . 4 2 . . . . . . Power . | . . . . . . . . . . . . . Propulsion 2 | . . . . . 1 1 . . . . . . Utility 3 | . . . . . 2 1 . . . . . . Weapon 1 | . . . . . 1 . . . . . . . Parts Attached 124 | 7 11 5 1 5 28 23 2 29 . 3 5 5 Power 12 | 1 . 2 . 2 . 1 . 4 . 1 . 1 Engine 8 | 1 . . . 1 . 1 . 3 . 1 . 1 Core 4 | . . 2 . 1 . . . 1 . . . . Reactor . | . . . . . . . . . . . . . Propulsion 21 | 2 3 . . . 6 5 . 5 . . . . Treads 1 | . . . . . . . . 1 . . . . Leg 4 | 2 . . . . 1 . . 1 . . . . Wheel 16 | . 3 . . . 5 5 . 3 . . . . Hover . | . . . . . . . . . . . . . Flight . | . . . . . . . . . . . . . Utility 45 | 2 4 1 . . 12 11 1 9 . 1 2 2 Device 18 | 1 1 1 . . 4 4 1 2 . 1 2 1 Storage 7 | 1 2 . . . 2 . . 1 . . . 1 Processor 5 | . . . . . 1 1 . 3 . . . . Hackware 3 | . . . . . 1 2 . . . . . . Protection 12 | . 1 . . . 4 4 . 3 . . . . Artifact . | . . . . . . . . . . . . . Weapon 46 | 2 4 2 1 3 10 6 1 11 . 1 3 2 Energy Gun 19 | 2 2 . . 2 7 3 . 3 . . . . Energy Cannon 10 | . . 2 . . 1 2 . 4 . 1 . . Ballistic Gun . | . . . . . . . . . . . . . Ballistic Cannon 1 | . . . . 1 . . . . . . . . Launcher 9 | . 1 . . . 2 1 1 3 . . . 1 Special Weapon 4 | . 1 . . . . . . . . . 2 1 Impact Weapon . | . . . . . . . . . . . . . Slashing Weapon . | . . . . . . . . . . . . . Piercing Weapon 1 | . . . . . . . . 1 . . . . Special Melee Weapon 2 | . . . 1 . . . . . . . 1 . Unidentified Prototypes 11 | . . . . . 3 1 . 6 . . 1 . Corrupted Parts 1 | . . . . . . . . 1 . . . . System Corruption 15 | . . . . . . . . 15 . . . . Parts Lost 19 | . . . . 2 2 1 . 13 . . . 1 Power 5 | . . . . 1 . . . 4 . . . . Propulsion 4 | . . . . . 1 . . 3 . . . . Utility 6 | . . . . . 1 1 . 3 . . . 1 Weapon 4 | . . . . 1 . . . 3 . . . . Highest Loss Streak 11 | . . . . 1 1 1 . 11 . . . 1 To Critical Strikes . | . . . . . . . . . . . . . Average Backups 17 | 2 13 20 20 18 17 17 16 15 16 18 18 18 Power . | . . . . . . . . . . . 1 1 Propulsion 2 | . 2 6 6 4 3 2 2 1 . . . . Utility 7 | . 4 7 8 8 6 8 8 6 7 10 8 8 Weapon 5 | 1 4 5 5 3 5 5 5 6 8 7 7 8 Tool/Special . | . . . . . . . . . . . . . Unused Backups 43 | 1 5 . . 8 9 6 . 1 . 2 1 10 Power 3 | . 1 . . . . . . . . . . 2 Propulsion 7 | . 1 . . 3 3 . . . . . . . Utility 22 | 1 2 . . 3 2 5 . 1 . 2 1 5 Weapon 10 | . . . . 2 4 1 . . . . . 3 Tool/Special 1 | . 1 . . . . . . . . . . . Average Slot Usage (%) 89 | . 100 100 100 99 98 83 83 77 69 74 85 92 Engine 6 | . 14 8 . 3 8 7 7 6 . 2 7 7 Core 2 | . . 5 14 10 . . . . . . . . Leg 3 | . 17 . . . . . . . 7 7 7 7 Wheel 18 | . 10 28 28 28 26 15 15 13 15 15 15 15 Device 10 | . 13 14 14 10 13 13 15 7 . 6 7 9 Storage 9 | . 14 14 14 14 9 7 7 7 7 7 7 7 Processor 5 | . . . . . 2 2 . 11 15 15 15 12 Hackware 1 | . . . . . . 5 7 4 . . . . Protection 5 | . . . . 3 9 7 7 2 15 7 7 7 Energy Gun 9 | . 27 2 . 4 24 14 . 9 . . . . Energy Cannon 10 | . . 25 16 17 . 7 7 9 7 7 14 15 Peak Build Rating 67 | 7 13 14 14 24 37 50 50 67 46 54 61 65 Average Rating 35 | 5 8 12 14 17 31 48 49 52 46 47 54 62 On Entrance 31 | . 7 13 14 14 19 37 48 46 46 46 53 61 Naked Turns . | . . . . . . . . . . . . . Heaviest Build 86 | 13 50 52 52 62 68 82 78 80 63 75 83 86 Greatest Support 56 | 20 24 24 24 24 40 56 56 56 20 20 20 20 Greatest Overweight (x) 5 | . 3 2 2 2 5 1 1 5 3 3 4 4 Average Overweight (x) 1 | . . 2 2 2 1 1 1 1 3 2 2 4 Largest Inventory Capacity 20 | 8 20 20 20 20 20 20 20 20 20 20 20 20 Average Capacity 19 | 7 15 20 20 20 20 20 20 20 20 20 20 20 Most Carried 20 | 5 20 20 20 20 20 20 18 20 18 20 20 20 Average Carried 18 | 2 13 19 20 19 19 19 18 17 17 19 19 19 Final Capacity 20 | 8 20 20 20 20 20 20 20 20 20 20 20 20 Final Carried 20 | 4 20 20 20 19 20 18 18 16 18 19 20 19 Class Distribution -------------------- 56% | Mutant 28% | Tank 9% | Gunner 3% | Scavenger-Gunner Dominant Class ---------------- Mutant | -10/Materials Mutant | -10/Mines Mutant | -10/Exiles Mutant | -9/Mines Tank | -8/Materials Tank | -7/Factory Tank | -7/Waste Gunner | -7/Factory Mutant | -7/Lower Caves Mutant | -7/Lower Caves Mutant | -7/Zion Gunner | -6/Proximity Caves Resources | -11 -10 -10 -10 -9 -8 -7 -7 -7 -7 -7 -7 -6 ----------- Run | Yrd Mat Min Exi Min Mat Fac Was Fac Low Low Zio Pro Matter Collected 3967 | 270 150 120 . 256 845 693 281 745 114 246 137 110 Remotely . | . . . . . . . . . . . . . Salvage Created 6336 | 197 647 281 . 354 1391 1567 395 1171 . 44 . 289 Parts 327 | 14 51 14 . 30 58 76 . 58 . 5 . 21 Haulers Intercepted 11 | . 2 . . . 6 2 . 1 . . . . Recyclers Shooed 1 | . . . . 1 . . . . . . . . Parts Field Recycled . | . . . . . . . . . . . . . Retrieved Matter . | . . . . . . . . . . . . . Parts Self-Destructed 14 | . . . . . . . . . . 4 . 10 Prevented 1 | . . . . . . . . . . . . 1 Kills | -11 -10 -10 -10 -9 -8 -7 -7 -7 -7 -7 -7 -6 ------- Run | Yrd Mat Min Exi Min Mat Fac Was Fac Low Low Zio Pro Combat Hostiles Destroyed 106 | . 11 3 . 16 19 33 2 14 . 1 . 7 Guns 31 | . 8 . . . 4 15 . 4 . . . . Cannons 41 | . . . . 15 5 11 . 8 . 1 . 1 AOE 28 | . 3 3 . 1 5 6 2 2 . . . 6 Classes Destroyed 19 | 2 6 . . 3 1 3 1 . . . . 3 Worker 8 | . 3 . . . . 1 . 4 . . . . Builder 9 | . . . . . . 4 . 5 . . . . Tunneler 9 | 5 . . . 1 1 . . 2 . . . . Hauler 11 | . 2 . . . 6 2 . 1 . . . . Recycler 13 | 1 1 4 . . 3 . . 4 . . . . Mechanic 1 | . . . . . . 1 . . . . . . Operator 6 | . 1 . . . 3 2 . . . . . . Drone 2 | . . . . . . . . . . . . 2 Watcher 13 | . 3 . . . 5 2 . 3 . . . . Swarmer 32 | . 6 3 . 6 4 13 . . . . . . Grunt 32 | . 5 . . 5 8 8 . 6 . . . . Brawler 2 | . . . . 1 . 1 . . . . . . Protector 2 | . . . . . . . . . . . . 2 Sentry 12 | . . . . 2 5 4 . 1 . . . . Hunter 8 | . . . . . 2 2 . 2 . . . 2 Programmer 12 | . . . . . . 5 . 5 . 1 . 1 Compactor 2 | . . . . . . . 2 . . . . . Assembled 2 | . . . . 2 . . . . . . . . Mutant 1 | . . . . . . . . . . . . 1 Best Kill Streak 7 | 5 6 3 . 5 5 7 1 5 . 1 . 5 Combat Bots Only 5 | . 4 3 . 5 4 5 1 2 . 1 . 5 Max Kills in Single Turn 4 | 1 4 3 . 1 3 2 1 3 . 1 . 4 Gunslinging 1 | . . . . . . 1 . . . . . . Exploded 4 | . 3 3 . 1 3 2 1 1 . . . 4 Melee . | . . . . . . . . . . . . . Uniques/NPCs Destroyed . | . . . . . . . . . . . . . Combat | -11 -10 -10 -10 -9 -8 -7 -7 -7 -7 -7 -7 -6 -------- Run | Yrd Mat Min Exi Min Mat Fac Was Fac Low Low Zio Pro Hostile Shots Fired 620 | . 20 8 . 45 74 233 . 210 . 2 . 28 Missed 177 | . 8 . . 8 23 68 . 59 . . . 11 Hits 443 | . 12 8 . 37 51 165 . 151 . 2 . 17 Melee 1 | . . . . . . 1 . . . . . . Projectile 442 | . 12 8 . 37 51 164 . 151 . 2 . 17 AOE 2 | . . . . . . . . 2 . . . . Critical Strikes 16 | . . . . 1 3 . . 12 . . . . Part Disruptions 4 | . . . . 3 . . . 1 . . . . Damage Taken 6210 | . 141 62 . 465 729 2013 92 2264 64 46 . 334 Core 909 | . 18 21 . 31 139 283 11 335 . . . 71 Absorbed by Shields 38 | . . . . . . . . 38 . . . . Redirected to Shielding 77 | . . . . . 20 57 . . . . . . Regen/Repaired (Parts) 116 | . 26 . . . 90 . . . . . . . Core Remaining (%) 82 | 100 . . . 72 74 . . . . . . . Volleys Fired 463 | 7 32 18 . 38 91 139 15 72 8 27 1 15 Largest 3 | 2 2 2 . 2 3 3 2 3 1 2 1 2 Hottest 240 | 80 130 120 . 131 187 225 78 240 90 180 90 180 Shots Fired 858 | 14 62 34 . 54 171 293 30 143 9 27 1 20 Gun 393 | 14 60 . . 8 120 152 . 39 . . . . Cannon 397 | . . 32 . 45 44 133 . 97 9 26 1 10 Launcher 66 | . 1 2 . 1 7 8 30 7 . 1 . 9 Special 2 | . 1 . . . . . . . . . . 1 Kinetic 58 | . . . . 21 37 . . . . . . . Thermal 661 | . 3 32 . 32 127 285 . 136 9 26 1 10 Explosive 56 | . 1 2 . 1 3 8 30 7 . 1 . 3 Electromagnetic 83 | 14 58 . . . 4 . . . . . . 7 Robot Hit Streak 17 | 4 6 4 . 6 17 14 6 9 4 5 . 7 Robot Miss Streak 17 | 2 3 4 . 4 3 6 2 17 . . . 1 Penetration Max . | . . . . . . . . . . . . . Secondary Targets 4 | . 1 . . . 1 2 . . . . . . Max Gunslinging Chain 1 | . 1 . . . 1 1 . . . . . . Shots Hit Robots 495 | 7 31 16 8 35 112 159 17 92 1 1 5 11 Core Hits 291 | 6 28 7 . 17 50 81 5 67 . 1 . 29 Critical Kills . | . . . . . . . . . . . . . Critical Parts Destroyed . | . . . . . . . . . . . . . Critical Strikes 26 | . . . . 2 11 10 . 3 . . . . Burn 23 | . . . . . 10 10 . 3 . . . . Blast 3 | . . . . 2 1 . . . . . . . Melee Attacks 22 | . . . 8 . 1 . . 8 . . 5 . Impact . | . . . . . . . . . . . . . Slashing . | . . . . . . . . . . . . . Piercing 8 | . . . . . . . . 8 . . . . Sneak Attacks 16 | . . . 8 . 1 . . 2 . . 5 . Combat Hostiles . | . . . . . . . . . . . . . Follow-up Attacks . | . . . . . . . . . . . . . Damage Inflicted 15952 | 112 611 367 . 828 2581 4517 2602 2724 39 46 . 1525 Guns 4765 | 112 468 . . 110 1533 1946 . 596 . . . . Cannons 4875 | . . 247 . 656 577 1396 . 1522 39 46 . 392 Explosions 6077 | . 143 120 . 62 470 1165 2602 424 . . . 1091 Melee 182 | . . . . . . . . 182 . . . . Ramming 11 | . . . . . 1 10 . . . . . . Kinetic 965 | . . . . 388 577 . . . . . . . Thermal 8121 | . 26 247 . 378 1533 3342 . 2118 39 46 . 392 Explosive 5316 | . 117 120 . 62 235 1165 2602 424 . . . 591 Electromagnetic 1315 | 112 468 . . . 235 . . . . . . 500 Impact . | . . . . . . . . . . . . . Slashing 42 | . . . . . . . . . . . . 42 Piercing 182 | . . . . . . . . 182 . . . . Highest Corruption 40 | . . . . . . 6 17 39 39 40 40 . Average Corruption 21 | . . . . . . 3 12 29 39 39 40 . Corruption Purged . | . . . . . . . . . . . . . Corruption Blocked . | . . . . . . . . . . . . . Effects 190 | . . . . . . 28 8 87 37 27 3 . Message Errors 37 | . . . . . . 5 1 16 8 6 1 . Matter Fused 45 | . . . . . . 8 2 15 12 6 2 . Heat Flow Errors 15 | . . . . . . 2 1 5 5 2 . . Energy Discharges 21 | . . . . . . 4 . 11 4 2 . . Parts Rejected 4 | . . . . . . . 1 3 . . . . Parts Fused 2 | . . . . . . . . 1 1 . . . Data Loss (minor) 22 | . . . . . . 4 2 9 4 3 . . Data Loss (major) 10 | . . . . . . 2 1 3 2 2 . . Misfires 4 | . . . . . . . . 2 1 1 . . Alerts 6 | . . . . . . 1 . 2 . 3 . . Misdirections 5 | . . . . . . . . 5 . . . . Weapon Failures 19 | . . . . . . 2 . 15 . 2 . . Overload Shots . | . . . . . . . . . . . . . Overflow Damage 234 | . . 5 . 25 17 66 . 82 27 . . 12 Projectiles 177 | . . 5 . 25 17 65 . 26 27 . . 12 Explosions 1 | . . . . . . 1 . . . . . . Melee 56 | . . . . . . . . 56 . . . . Knockbacks 2 | . . . . . 2 . . . . . . . Impact . | . . . . . . . . . . . . . Kinetic 2 | . . . . . 2 . . . . . . . Secondary . | . . . . . . . . . . . . . Self-Inflicted Damage 286 | . . . . . . 5 93 79 . 16 . 93 Shots 11 | . . . . . . . 3 4 . 1 . 3 Rammed 2 | . . . . . 1 1 . . . . . . Targets Rammed 2 | . . . . . 1 1 . . . . . . Kicked . | . . . . . . . . . . . . . Crushed . | . . . . . . . . . . . . . Highest Temperature 356 | 90 188 198 . 198 199 335 148 309 356 180 38 192 Average Temperature 87 | 38 51 87 . 84 91 98 32 92 113 62 23 101 Received Heat Transfer 1347 | . 51 . . 246 279 207 . 525 . . . 39 Effects 3 | . . . . . . 3 . . . . . . Energy Bleed 1 | . . . . . . 1 . . . . . . Interference 2 | . . . . . . 2 . . . . . . Siege Activations . | . . . . . . . . . . . . . Martial Activations . | . . . . . . . . . . . . . Shielding Activations . | . . . . . . . . . . . . . Robots Disrupted . | . . . . . . . . . . . . . Combat Hostiles . | . . . . . . . . . . . . . Robots Corrupted 2 | . . . . . 2 . . . . . . . Combat Hostiles 2 | . . . . . 2 . . . . . . . Parts Fried 8 | 2 1 . . . 1 . . . . . . 4 Impact Corruptions . | . . . . . . . . . . . . . Robots Melted 5 | . . . . . 4 1 . . . . . . Combat Hostiles 4 | . . . . . 3 1 . . . . . . Parts Melted 38 | . . 1 . . 7 19 . 11 . . . . Heat Transferred 16130 | . . 518 . 777 4107 7128 . 3600 . . . . Parts Sabotaged . | . . . . . . . . . . . . . Parts Stolen . | . . . . . . . . . . . . . Parts Stripped . | . . . . . . . . . . . . . Power Chain Reactions 3 | . 1 . . . 2 . . . . . . . Alert | -11 -10 -10 -10 -9 -8 -7 -7 -7 -7 -7 -7 -6 ------- Run | Yrd Mat Min Exi Min Mat Fac Was Fac Low Low Zio Pro Maximum Alert Level 3 | . . . . . 1 3 1 1 . . . . Low Security (%) 89 | 100 100 100 . 100 77 85 . 98 . . . . Level 1 8 | . . . . . 22 9 100 1 . . . . Level 2 . | . . . . . . 3 . . . . . . Level 3 . | . . . . . . 2 . . . . . . Level 4 . | . . . . . . . . . . . . . Level 5 . | . . . . . . . . . . . . . High Security . | . . . . . . . . . . . . . Max Security . | . . . . . . . . . . . . . Peak Influence 756 | 15 129 110 . 100 270 756 296 200 . . . . Initial 263 | . . 26 . . 14 . 263 200 . . . . Average 89 | 4 40 20 . 38 98 139 266 119 . . . . Influence Increases 4138 | 30 387 266 . 359 774 1347 113 630 . 30 . 202 Destroy 0b10 Robot/C 2160 | . 220 180 . 280 380 660 . 280 . 20 . 140 Destroy 0b10 Robot/NC 370 | 30 50 20 . 5 90 60 . 95 . . . 20 Destroy Leader 548 | . 50 30 . 30 132 178 . 98 . 10 . 20 Allied During Kill 45 | . . 22 . 1 . . . . . . . 22 Trap Triggered on 0b10 20 | . . . . . . . . 20 . . . . Successful Hack 188 | . 25 . . . 34 104 . 25 . . . . Disable Machine 210 | . 15 . . 15 60 75 . 45 . . . . Destroy Structure 357 | . 12 14 . 13 48 105 113 52 . . . . Lose Combat Pursuer 240 | . 15 . . 15 30 165 . 15 . . . . Influence Decreases 4068 | 30 318 333 2 320 813 593 581 734 182 16 14 132 Entered New Map 729 | . . 43 2 . 25 . 491 86 68 . 14 . Time Decay 2695 | 30 318 250 . 290 516 433 90 518 114 16 . 120 Lost Part 170 | . . . . 10 20 10 . 130 . . . . Lost Ally 72 | . . 40 . 20 . . . . . . . 12 Purge Threat 402 | . . . . . 252 150 . . . . . . Squads Dispatched 24 | . 1 . . . 2 15 . 6 . . . . Investigation 6 | . . . . . . 5 . 1 . . . . Extermination 7 | . . . . . . 5 . 2 . . . . Reinforcement 9 | . 1 . . . 2 3 . 3 . . . . Assault 1 | . . . . . . 1 . . . . . . Garrison 1 | . . . . . . 1 . . . . . . Intercept . | . . . . . . . . . . . . . Searches Triggered . | . . . . . . . . . . . . . Construction Impeded 1 | . . . . . . 1 . . . . . . Haulers Reinforced 1 | . . . . . . 1 . . . . . . Active Scanning Responses . | . . . . . . . . . . . . . Cargo Convoy Interrupts 1 | . . . . . . . . 1 . . . . Stealth | -11 -10 -10 -10 -9 -8 -7 -7 -7 -7 -7 -7 -6 --------- Run | Yrd Mat Min Exi Min Mat Fac Was Fac Low Low Zio Pro Distress Signals 4 | . 1 . . . 1 2 . . . . . . Communications Jammed . | . . . . . . . . . . . . . Distress Signals . | . . . . . . . . . . . . . Times Spotted 165 | . 17 7 . 16 27 54 3 29 . 1 . 11 Peak Tracking Total 7 | . 3 3 . 3 4 7 1 4 . . . 7 Tactical Retreats 12 | . 1 . . 2 2 6 . 1 . . . . Traps | -11 -10 -10 -10 -9 -8 -7 -7 -7 -7 -7 -7 -6 ------- Run | Yrd Mat Min Exi Min Mat Fac Was Fac Low Low Zio Pro Traps Triggered 11 | . 2 . . . . 3 . 5 1 . . . Indirectly . | . . . . . . . . . . . . . Trap Hack Attempts 42 | . . . . . 27 15 . . . . . . Triggered . | . . . . . . . . . . . . . Disarmed . | . . . . . . . . . . . . . Reprogrammed 6 | . . . . . 4 2 . . . . . . Reused 2 | . . . . . . . . 2 . . . . Traps Extracted 8 | . . . . . 4 2 . 2 . . . . Installed 4 | . . . . . . . . 4 . . . . Triggered 2 | . . . . . . . . 2 . . . . Most Traps Carried 6 | . . . . . 4 6 6 6 4 4 4 4 Machines | -11 -10 -10 -10 -9 -8 -7 -7 -7 -7 -7 -7 -6 ---------- Run | Yrd Mat Min Exi Min Mat Fac Was Fac Low Low Zio Pro Machines Disabled 14 | . 1 . . 1 4 5 . 3 . . . . Max in Single Turn 2 | . 1 . . 1 2 2 . 2 . . . . Garrison Access 2 | . . . . . 1 1 . . . . . . Machines Repaired . | . . . . . . . . . . . . . Machines Dismantled . | . . . . . . . . . . . . . Machines Sabotaged . | . . . . . . . . . . . . . Overloaded Fab Kills . | . . . . . . . . . . . . . Hacking | -11 -10 -10 -10 -9 -8 -7 -7 -7 -7 -7 -7 -6 --------- Run | Yrd Mat Min Exi Min Mat Fac Was Fac Low Low Zio Pro Machines Accessed 46 | . 10 . 1 1 11 16 . 5 2 . . . Terminals 26 | . 7 . . . 8 8 . 3 . . . . Fabricators 6 | . . . . . . 5 . 1 . . . . Repair Stations 3 | . 1 . . . 1 . . 1 . . . . Recycling Units 2 | . 2 . . . . . . . . . . . Scanalyzers 3 | . . . . . 1 2 . . . . . . Garrison Access 2 | . . . . . 1 1 . . . . . . Total Hacks 134 | . 32 . 1 1 36 46 . 16 2 . . . Successful 82 | . 17 . 1 1 23 31 . 7 2 . . . Failed 51 | . 14 . . . 13 15 . 9 . . . . Catastrophic 8 | . . . . . 3 3 . 2 . . . . Database Lockouts 1 | . 1 . . . . . . . . . . . Manual 44 | . 15 . . . 11 8 . 10 . . . . Terminals 78 | . 23 . . . 25 19 . 11 . . . . Fabricators 18 | . . . . . . 14 . 4 . . . . Repair Stations 6 | . 2 . . . 3 . . 1 . . . . Recycling Units 7 | . 7 . . . . . . . . . . . Scanalyzers 18 | . . . . . 6 12 . . . . . . Garrison Access 3 | . . . . . 2 1 . . . . . . Terminal Hacks 36 | . 7 . 1 1 13 9 . 3 2 . . . Record 1 | . . . 1 . . . . . . . . . Robot Analysis 2 | . 2 . . . . . . . . . . . Prototype ID Bank 5 | . 2 . . . 2 . . 1 . . . . Open Door 3 | . . . . 1 . . . . 2 . . . Level Access Points 1 | . . . . . . 1 . . . . . . Branch Access Points 3 | . . . . . 1 1 . 1 . . . . Terminal Index 2 | . 1 . . . 1 . . . . . . . Repair Station Index 1 | . 1 . . . . . . . . . . . Unreport Threat 3 | . . . . . 2 1 . . . . . . Locate Traps 6 | . . . . . 3 3 . . . . . . Recall Extermination 1 | . . . . . . 1 . . . . . . Hauler Manifests 3 | . . . . . 3 . . . . . . . Registered Components 3 | . 1 . . . . 1 . 1 . . . . Zone Layout 2 | . . . . . 1 1 . . . . . . Fabricator Hacks 8 | . . . . . . 7 . 1 . . . . Network Status 1 | . . . . . . 1 . . . . . . Load Schematic 6 | . . . . . . 5 . 1 . . . . Build 1 | . . . . . . 1 . . . . . . Repair Station Hacks 4 | . 2 . . . 2 . . . . . . . Scan Component 2 | . 1 . . . 1 . . . . . . . Repair 2 | . 1 . . . 1 . . . . . . . Recycling Unit Hacks 2 | . 2 . . . . . . . . . . . Report Inventory 1 | . 1 . . . . . . . . . . . Retrieve Components 1 | . 1 . . . . . . . . . . . Scanalyzer 15 | . . . . . 5 10 . . . . . . Insert Component 8 | . . . . . 3 5 . . . . . . Analyze 7 | . . . . . 2 5 . . . . . . Garrison Access Hacks 2 | . . . . . 1 1 . . . . . . Seal Access 2 | . . . . . 1 1 . . . . . . Unauthorized Hacks 15 | . 6 . . . 2 4 . 3 . . . . Terminals 9 | . 3 . . . 2 2 . 2 . . . . Botnet 7 | . 2 . . . 2 2 . 1 . . . . Operators 2 | . 1 . . . . . . 1 . . . . Fabricators 3 | . . . . . . 2 . 1 . . . . Recompile 3 | . . . . . . 2 . 1 . . . . Repair Stations . | . . . . . . . . . . . . . Recycling Units 3 | . 3 . . . . . . . . . . . Reject 2 | . 2 . . . . . . . . . . . Recyclers 1 | . 1 . . . . . . . . . . . Scanalyzers . | . . . . . . . . . . . . . Garrison Access . | . . . . . . . . . . . . . Data Cores Recovered 3 | . . . . . 1 2 . . . . . . Used . | . . . . . . . . . . . . . Hacking Detections 37 | . 8 . . . 10 14 . 5 . . . . Full Trace Events 3 | . . . . . . 3 . . . . . . Feedback Events 1 | . . . . . . 1 . . . . . . Corruption 1 | . . . . . . 1 . . . . . . Feedback Blocked . | . . . . . . . . . . . . . Robot Schematics Acquired 4 | . . . . . . . . . . . 4 . Robots Built . | . . . . . . . . . . . . . Authchips . | . . . . . . . . . . . . . Time . | . . . . . . . . . . . . . Total Robot Build Rating . | . . . . . . . . . . . . . Part Schematics Acquired 21 | . . . . . 2 5 . . . . 14 . Parts Built 1 | . . . . . . 1 . . . . . . Authchips . | . . . . . . . . . . . . . Time 42 | . . . . . . 42 . . . . . . Total Part Build Rating 4 | . . . . . . 4 . . . . . . Parts Repaired 2 | . 1 . . . 1 . . . . . . . Time 64 | . 32 . . . 32 . . . . . . . Parts Recycled . | . . . . . . . . . . . . . Recycled Matter . | . . . . . . . . . . . . . Retrieved Matter . | . . . . . . . . . . . . . Retrieved Components 3 | . 3 . . . . . . . . . . . Parts Scanalyzed 8 | . . . . . 3 5 . . . . . . Part Schematics Acquired 7 | . . . . . 2 5 . . . . . . Parts Damaged . | . . . . . . . . . . . . . Bothacking | -11 -10 -10 -10 -9 -8 -7 -7 -7 -7 -7 -7 -6 ------------ Run | Yrd Mat Min Exi Min Mat Fac Was Fac Low Low Zio Pro Used RIF Installer . | . . . . . . . . . . . . . Robots Hacked 10 | . . . 4 . 1 . . . . . 5 . Non-combat 7 | . . . 3 . 1 . . . . . 3 . Combat 3 | . . . 1 . . . . . . . 2 . Robot Hacks Applied 14 | . . . 8 . 1 . . . . . 5 . parse_system 14 | . . . 8 . 1 . . . . . 5 . Relay Couplers Released 3 | . . . . . . . . 3 . . . . Programmers 3 | . . . . . . . . 3 . . . . Fabnet Peak Effective % . | . . . . . . . . . . . . . Robots Rewired . | . . . . . . . . . . . . . Allies Hacked . | . . . . . . . . . . . . . Hacks Repelled . | . . . . . . . . . . . . . Allies | -11 -10 -10 -10 -9 -8 -7 -7 -7 -7 -7 -7 -6 -------- Run | Yrd Mat Min Exi Min Mat Fac Was Fac Low Low Zio Pro Total Allies 8 | . . 4 . . . . . . . . 4 . Largest Group 4 | . . 3 2 1 . . . . . . 4 4 Highest-Rated Group 150 | . . 55 39 8 . . . . . . 150 150 Highest-Rated Ally 39 | . . 31 31 8 . . . . . . 39 39 Total Orders 4 | . . . 4 . . . . . . . . . STAY 2 | . . . 2 . . . . . . . . . FOLLOW 2 | . . . 2 . . . . . . . . . Ally Attacks 58 | . . 24 . 1 . . . . . . . 33 Total Damage 680 | . . 231 . . . . . . . . . 449 Kills 11 | . . 7 . . . . . . . . . 4 Allies Corrupted . | . . . . . . . . . . . . . Allies Melted . | . . . . . . . . . . . . . Intel | -11 -10 -10 -10 -9 -8 -7 -7 -7 -7 -7 -7 -6 ------- Run | Yrd Mat Min Exi Min Mat Fac Was Fac Low Low Zio Pro Active Infowar (turns) 10163 | 36 1090 900 . . 1235 2405 183 1163 658 525 1587 381 Optics 3943 | . . . . . . . . 792 658 525 1587 381 Seismic 8019 | 36 1090 900 . . 1235 1930 183 246 . 495 1586 318 T.N.C. 887 | . . . . . . 762 . 125 . . . . Robot Analysis Total 2 | . 2 . . . . . . . . . . . Derelict Logs Recovered 7 | . . 1 . 1 . . . . 1 2 1 1 Drone Launches . | . . . . . . . . . . . . . Drone Recoveries . | . . . . . . . . . . . . . Exploration | -11 -10 -10 -10 -9 -8 -7 -7 -7 -7 -7 -7 -6 ------------- Run | Yrd Mat Min Exi Min Mat Fac Was Fac Low Low Zio Pro Turns Passed 13305 | 121 1125 1466 679 907 1792 2459 183 1422 658 525 1587 381 Spaces Moved 8667 | 74 677 754 521 635 1157 1600 110 851 511 344 1229 204 Core 8 | 8 . . . . . . . . . . . . Treads . | . . . . . . . . . . . . . Legs 434 | 66 353 . . . . . . 15 . . . . Wheels 8225 | . 324 754 521 635 1157 1600 110 836 511 344 1229 204 Hover . | . . . . . . . . . . . . . Flight . | . . . . . . . . . . . . . Fastest Speed 50 | 50 105 120 120 120 105 115 115 100 125 110 110 140 Average Speed 119 | 112 136 120 120 120 106 115 115 117 125 121 124 140 Slowest Speed 250 | 120 190 120 120 120 165 115 115 250 125 125 140 140 Overloaded Moves . | . . . . . . . . . . . . . Propulsion Burnouts . | . . . . . . . . . . . . . Robots Hopped . | . . . . . . . . . . . . . Potential Cave-ins 2 | . . . . . . . 2 . . . . . Cave-ins Triggered . | . . . . . . . . . . . . . Exploration Rate (%) 65 | 4 93 99 71 100 80 51 72 27 69 62 92 28 Regions Visited 12 Branch Regions 7 Pre-discovered Areas 5 | . . . 1 . . . . . . . 4 . Known Exits Taken 1 | . . . . . . . . 1 . . . . Unknown Exits Taken 9 | 1 1 1 1 1 1 . . . 1 1 1 . Scrap Searched 14 | . . 1 . 2 . . . . 2 4 4 1 Spaces Dug 67 | . 1 . . . 5 29 . 21 2 9 . . Terrain Destroyed 592 | . 12 20 . 13 53 117 203 67 8 45 . 54 Melee 5 | . . . . . . . . 5 . . . . Projectile 92 | . 1 . . 4 20 29 . 5 8 25 . . AOE 495 | . 11 20 . 9 33 88 203 57 . 20 . 54 Terrain Rammed . | . . . . . . . . . . . . . Walls Destroyed . | . . . . . . . . . . . . . Machines Disabled . | . . . . . . . . . . . . . Actions | -11 -10 -10 -10 -9 -8 -7 -7 -7 -7 -7 -7 -6 --------- Run | Yrd Mat Min Exi Min Mat Fac Was Fac Low Low Zio Pro Total 10794 | 95 813 1279 570 732 1567 1982 135 1121 520 417 1287 276 Wait 1107 | 1 59 496 41 18 171 118 8 76 . 36 37 46 Move 8656 | 73 676 753 520 634 1156 1600 109 850 510 343 1228 204 Hop . | . . . . . . . . . . . . . Pick Up 114 | 6 23 1 . 14 24 22 . 16 2 3 2 1 Fast Attach 43 | 6 3 . . . 5 4 . 19 . 2 4 . Attach 41 | 1 1 . . 3 10 7 . 16 . 2 . 1 Detach 14 | . . . . . 2 1 . 9 . 2 . . Swap 162 | . 12 8 1 9 45 45 3 27 . . 5 7 Drop 124 | 1 7 3 . 16 34 30 . 24 . 2 5 2 Fire 463 | 7 32 18 . 38 91 139 15 72 8 27 1 15 Melee 22 | . . . 8 . 1 . . 8 . . 5 . Ram 2 | . . . . . 1 1 . . . . . . Kick . | . . . . . . . . . . . . . Crush . | . . . . . . . . . . . . . Escape Stasis . | . . . . . . . . . . . . . Rewire . | . . . . . . . . . . . . . Trap 46 | . . . . . 27 15 . 4 . . . . Miscellaneous . | . . . . . . . . . . . . . Route ------- -11/Scrapyard -10/Materials (discovered 6 exits: [*Mat x3] / [*Min x2] / [*Sub]) -10/Mines (discovered 3 exits: [*Mat x2] / *Exi) -10/Exiles -9/Mines (discovered 2 exits: *Mat x2) -8/Materials (discovered 2 exits: *Fac x2) -7/Factory (discovered 6 exits: Fac x4 / *Low x2) -7/Waste -7/Factory (discovered 2 exits: *Low x2) -7/Lower Caves -7/Lower Caves (discovered 2 exits: *Fac / [*Zio]) -7/Zion -6/Proximity Caves History --------- Turn | Location | Event 5 | -11/Scrapyard | Discovered new exit (range 16) 122 | -11/Scrapyard | Entered Materials 316 | -10/Materials | Build established: Mutant 603 | -10/Materials | Discovered new exit (range 14) 771 | -10/Materials | Discovered new exit (range 14) 790 | -10/Materials | Discovered new exit (range 6) 880 | -10/Materials | Discovered new exit (range 3) 1019 | -10/Materials | Central database locked down 1048 | -10/Materials | Discovered new exit (range 14) 1096 | -10/Materials | Repaired Arm. Wheel 1144 | -10/Materials | Discovered new exit (range 10) 1247 | -10/Materials | Entered Mines 1278 | -10/Mines | A weapon hastily lodged in a ceiling crevice suddenly fell to the ground 1399 | -10/Mines | Discovered new exit (range 12) 1419 | -10/Mines | Assembled infested the area 1420 | -10/Mines | Assisted by bots powering up and referring to "LRC-V3" 1424 | -10/Mines | Assisted by a Guerilla fighting off Assembled 2124 | -10/Mines | Learned Materials emergency access door positions 2202 | -10/Mines | Escorted by a lone wolf Derelict 2214 | -10/Mines | Deemed a non-threat by the Exiles lab entrance 2326 | -10/Mines | Discovered new exit (range 11) 2708 | -10/Mines | Discovered new exit (range 5) 2713 | -10/Mines | Entered Exiles 2713 | -10/Exiles | Accompanied by 2 allies 2742 | -10/Exiles | Met 8R-AWN 2782 | -10/Exiles | Met EX-HEX 2817 | -10/Exiles | Met EX-BIN 2967 | -10/Exiles | Met EX-DEC 3017 | -10/Exiles | Learned location of Zion (-7) 3376 | -10/Exiles | Discovered new exit (range 14) 3392 | -10/Exiles | Entered Mines 3392 | -9/Mines | Accompanied by 1 ally 3426 | -9/Mines | Met a Derelict bent on vengeance 3615 | -9/Mines | Met a Derelict who couldn't figure out how to use a Trap Extractor 3959 | -9/Mines | Discovered new exit (range 12) 4049 | -9/Mines | Excavation squad dispatched 4049 | -9/Mines | A large section of the Mines collapsed 4166 | -9/Mines | Discovered new exit (range 8) 4299 | -9/Mines | Entered Materials 4299 | -8/Materials | Evolved 4 slots: Propulsion x1, Utility x2, Weapon x1 4598 | -8/Materials | Build established: Scavenger-Gunner 4730 | -8/Materials | Discovered new exit (range 13) 5140 | -8/Materials | Build established: Tank 5211 | -8/Materials | Discovered new exit (range 9) 5760 | -8/Materials | Repaired Rnf. Ion Engine 6091 | -8/Materials | Entered Factory 6091 | -7/Factory | Evolved 2 slots: Propulsion x1, Utility x1 7037 | -7/Factory | Identified exit to Factory 7483 | -7/Factory | Identified exit to Lower Caves 7532 | -7/Factory | Garrison activated, responded to threat 7826 | -7/Factory | Build established: Skirmisher 8153 | -7/Factory | Build established: Tank 8426 | -7/Factory | Fabricated Hvy. Rocket Launcher (x1) 8491 | -7/Factory | First assault squad dispatched 8550 | -7/Factory | Sucked down chute 8550 | -7/Factory | Entered Waste 8565 | -7/Waste | EMP discharged 8565 | -7/Waste | System corruption reached 10% 8593 | -7/Waste | Spotted C-40 Crusher 8602 | -7/Waste | Destroyed C-40 Crusher 8652 | -7/Waste | Spotted C-40 Crusher 8662 | -7/Waste | Destroyed C-40 Crusher 8665 | -7/Waste | EMP discharged 8683 | -7/Waste | Spotted C-40 Crusher 8686 | -7/Waste | Spotted C-40 Crusher 8701 | -7/Waste | Spotted C-40 Crusher 8717 | -7/Waste | Discovered new exit (range 12) 8733 | -7/Waste | Entered Factory 9102 | -7/Factory | Found Prototype Launcher 9102 | -7/Factory | Identified Rocket Array 9108 | -7/Factory | Found Rocket Array 9111 | -7/Factory | Found Rocket Array 9219 | -7/Factory | Build established: Gunner 9295 | -7/Factory | Cargo convoy interrupted 9342 | -7/Factory | Found Prototype Launcher 9342 | -7/Factory | Identified Tesla Bomb Launcher 9367 | -7/Factory | System corruption reached 30% 9388 | -7/Factory | Found Tesla Bomb Launcher 9397 | -7/Factory | Found PL-3XN's Ring of Power 9828 | -7/Factory | Core integrity fell below 50% 9958 | -7/Factory | Core integrity fell below 20% 10025 | -7/Factory | Lost 11 parts (3p2n3u3w) 10155 | -7/Factory | Entered Lower Caves 10191 | -7/Lower Caves | Build established: Mutant 10397 | -7/Lower Caves | Learned Factory trap positions 10539 | -7/Lower Caves | Entered a destroyed Warlord outpost 10584 | -7/Lower Caves | Encountered a Warlord checkpoint 10798 | -7/Lower Caves | Discovered new exit (range 14) 10813 | -7/Lower Caves | Entered another Lower Caves area 10860 | -7/Lower Caves | Discovered exit to Factory (range 11) 11133 | -7/Lower Caves | Learned 8 Factory zone layouts 11257 | -7/Lower Caves | Learned location of 1 exit from Factory 11322 | -7/Lower Caves | Discovered new exit (range 2) 11338 | -7/Lower Caves | Entered Zion 11389 | -7/Zion | System corruption cleaned by Quarantine Array 11539 | -7/Zion | Discovered new exit (range 16) 11669 | -7/Zion | Learned Factory stockpile data 11673 | -7/Zion | Given A8's code to call for help 11703 | -7/Zion | Learned location of Quarantine (-3) 12013 | -7/Zion | Learned location of Armory (-3) 12369 | -7/Zion | Found Prototype Special Weapon 12369 | -7/Zion | Identified RU-N14's Throwing Claymores 12372 | -7/Zion | Found RU-N14's Throwing Claymores 12376 | -7/Zion | Found RU-N14's Throwing Claymores 12489 | -7/Zion | Learned location of Testing (-2) 12568 | -7/Zion | Met Imprinter 12600 | -7/Zion | Imprinted 12602 | -7/Zion | Declared Zion's savior 12925 | -7/Zion | Entered Proximity Caves 12925 | -6/Proximity Caves | Accompanied by 4 allies 12940 | -6/Proximity Caves | Spotted B-75 Beast 13021 | -6/Proximity Caves | Allies destroyed B-75 Beast 13100 | -6/Proximity Caves | Unaware initiated a cargo recovery operation 13145 | -6/Proximity Caves | Learned Factory garrison access intel 13166 | -6/Proximity Caves | Attracted the attention of an 0b10 checkpoint 13306 | -6/Proximity Caves | Destroyed by X-67 Chaingunner with Heavy Machine Gun Last Messages --------------- 13292_ Slug penetrates Wall. 13295_ Imp. Deuterium Engine fried. 13295_ Salvage Targeting Computer fried. 13295_ VQ-79M(M) destroyed. 13296_ Slug penetrates Wall. 13296_ P-60 Hacker resets I-36 Angel, system corruption cleaned. 13297_ P-60 Hacker resets H-66 Slayer, system corruption cleaned. 13299_ Slug penetrates Wall. 13299_ P-60 Hacker resets H-66 Slayer, system corruption cleaned. 13301_ Wall collapses. 13302_ OJ-3J0(M) destroyed. 13303_ Com. Battery fried. 13303_ I-36 Angel destroyed. 13303_ H-66 Slayer destroyed. 13303_ P-60 Hacker destroyed. 13303_ H-66 Slayer destroyed. 13306_ I-36 Angel destroyed. Map ----- +----------------------------------------------------+ | ?????????????????????????????????????????????????? | | ?????????????????????????????????????????????????? | | ?????????????????????????????????????????????????? | | ?????????????????????????????????????????????????? | | ?????????????????????????????????????????????????? | | ?????????????????????????????????????????????????? | | ?????????????????????????????????????????????????? | | ?????????????????????????????????????????????????? | | ??????????????##?#???????????????????????????????? | | ??????????????# # ###??????###???????????????????? | | #?????????##### # # ####### ##??????????????????? | | ##????????? ! #??????????????????? | | ##????????# =%! #??????????????????? | | #####????# x #??????????????????? | | ##????# #??????????????????? | | ###### % #??????????????????? | | ##### ## ##?????????????????? | | ????# ## ## * ####??????????????? | | ????# ### ## % ! ##?????????????? | | ???# ### ###### *!* #?????????????? | | ?? & ### ###### %! ###### ###?????????????? | | ?##& ### % #????####???????????????? | | ??# #?# # ##??????????????????????? | | ??# ?# ####### != ##?????????????????????? | | ??# ?### ## #?????# [%= #?????????????????????? | | ??#????# #?## ????##|%@##?????????????????????? | | ???????# ???# ????##= ###????????????????????? | | ??????? ??? ???# ####?????????????????? | | ??????###???# "" ??## #?????????????????? | | ????????????## """" #?## #?????????????????? | | ?????????????? """ #??#### #?????????????????? | | ?????????????? " #?????? #?????????????????? | | ?????????????? " #???????##?????????????????? | | ?????????????? """" #??????????????????????????? | | ?????????????? " ? ???????????????????????????? | | ?????????????? ????????????????????????????? | | ??????????????## #?#????????????????????????????? | | ???????????????? ??????????????????????????????? | | ???????????????? ??????????????????????????????? | | ???????????????? ??????????????????????????????? | | ???????????????? ???????????????????????????????? | | ???????????????? ??????????????????????????????? | | ????????????????? ???????????????????????????????? | | ?????????????????????????????????????????????????? | | ?????????????????????????????????????????????????? | | ?????????????????????????????????????????????????? | | ?????????????????????????????????????????????????? | | ?????????????????????????????????????????????????? | | ?????????????????????????????????????????????????? | | ?????????????????????????????????????????????????? | +----------------------------------------------------+ Best States ------------- Heat Dissipation 61 Coolant Potential 65 Energy Generation 16 Energy Capacity 490 Matter Stores 300 Matter Capacity 300 Sight Range 23 Terrain Scan Density 10 Armor Coverage 450 Weapon Shielding 66 Evasion (%) 55 Targeting Accuracy 6 Core Analysis 6 Recoil Reduction 2 Matter Filtering 50 Offensive Hacking 20 Defensive Hacking 10 Authchip Count 3 Trap Extractor Capacity 6 Item Schematics ----------------- Lgt. Armored Exoskeleton | -8/Materials | Scanalyzed Arm. Huge Wheel | -8/Materials | Scanalyzed Core Analyzer | -7/Factory | Scanalyzed Hcp. Storage Unit | -7/Factory | Scanalyzed Hvy. Rocket Launcher | -7/Factory | Scanalyzed Med. Armor Plating | -7/Factory | Scanalyzed Hacking Suite | -7/Factory | Scanalyzed Weapon Cycler | -7/Zion | Archive Hpw. Shock Rifle | -7/Zion | Archive EM Disruption Field | -7/Zion | Archive Adv. Signal Interpreter | -7/Zion | Archive Imp. Cooling System | -7/Zion | Archive Hvy. Machine Gun | -7/Zion | Archive Hvy. Missile Launcher | -7/Zion | Archive Point Defense System | -7/Zion | Archive Mass Driver | -7/Zion | Archive Microactuators | -7/Zion | Archive Arm. Leg | -7/Zion | Archive Arc Projector | -7/Zion | Archive Imp. System Restoration Module | -7/Zion | Archive Flexi-carbon Leg | -7/Zion | Archive Robot Schematics ------------------ G-47 Trooper | -7/Zion | Archive K-01 Serf | -7/Zion | Archive O-24 Administrator | -7/Zion | Archive Y-72 Warden | -7/Zion | Archive Fabricated ------------ Hvy. Rocket Launcher | x1 | -7/Factory Repaired ---------- Arm. Wheel | 74% | -10/Materials Rnf. Ion Engine | 35% | -8/Materials Alien Tech Used ----------------- None Achievements -------------- None Challenges ------------ None Game ------ Seed ShockKineticShell Manual? 0 Play Time 02:35:38 Cumulative 295.8 hours Start 2025.09.02 @ 19:17:31 End 2025.09.02 @ 23:27:29 Sessions 1 Manual Loads 0 Difficulty Rogue Special Mode None Game No. 205 Rogue 205 Adventurer 0 Explorer 0 Win Type - Total 3 Types 3/0/0/0/0/0/0/0/0/0 Lore% 73 Gallery% 74 Achievement% 60 Wizard Run 0 Options --------- Layout 1 ASCII 0 Keyboard 0 Movement Numpad Keybinds 0 Fullscreen 1 Font 24/Smallcaps Map View 50x40 Zoom Use 1% Tactical HUD 1 Map Filters NONE Filters NONE Steam 1 RUN: e50d697a-ff35-4363-acff-866f4095280b